[Event "Early-Titled-Tuesday-Blitz-May-07-2024"]
[Site "Chess.com"]
[Date "2024.05.07"]
[Round "1"]
[White "AlexeiShirov"]
[Black "MFatigue"]
[Result "1-0"]
[WhiteElo "2841"]
[BlackElo "2473"]
[TimeControl "180+1"]
[EndTime "8:07:40 PDT"]
[Termination "AlexeiShirov won by resignation"]

1. e4 {[%clk 0:03:00.9]} 1... e6 {[%clk 0:02:59.8]} 2. d4 {[%clk 0:02:59.9]}
2... d5 {[%clk 0:03:00.2]} 3. e5 {[%clk 0:03:00.6]} 3... c5 {[%clk 0:03:00.1]}
4. c3 {[%clk 0:03:01.2]} 4... Nc6 {[%clk 0:03:00.6]} 5. Nf3 {[%clk 0:03:01.3]}
5... Bd7 {[%clk 0:03:01]} 6. Be2 {[%clk 0:02:58.5]} 6... Nge7 {[%clk 0:03:00.7]}
7. O-O {[%clk 0:02:54.5]} 7... Nf5 {[%clk 0:03:00.6]} 8. dxc5 {[%clk 0:02:53.6]}
8... Bxc5 {[%clk 0:02:59.4]} 9. b4 {[%clk 0:02:53.3]} 9... Bb6 {[%clk
0:02:59.6]} 10. Bd3 {[%clk 0:02:51.5]} 10... Nh4 {[%clk 0:02:53.7]} 11. Nbd2
{[%clk 0:02:43.5]} 11... O-O {[%clk 0:02:52.7]} 12. b5 {[%clk 0:02:36.2]} 12...
Na5 {[%clk 0:02:51.4]} 13. Qa4 {[%clk 0:02:14]} 13... Ng6 {[%clk 0:02:44.5]} 14.
h4 {[%clk 0:02:11.8]} 14... Qc7 {[%clk 0:02:37.1]} 15. Ba3 {[%clk 0:01:55.5]}
15... Rfc8 {[%clk 0:02:08]} 16. Bb4 {[%clk 0:01:24.2]} 16... Nc4 {[%clk
0:02:00.5]} 17. Nxc4 {[%clk 0:01:19.5]} 17... dxc4 {[%clk 0:02:01.4]} 18. Bxg6
{[%clk 0:01:18.9]} 18... hxg6 {[%clk 0:02:02.3]} 19. Bd6 {[%clk 0:01:18]} 19...
Qd8 {[%clk 0:02:01.4]} 20. Rad1 {[%clk 0:01:17.4]} 20... a6 {[%clk 0:01:59.9]}
21. Qb4 {[%clk 0:01:12.7]} 21... Bxb5 {[%clk 0:01:44.8]} 22. Ng5 {[%clk
0:01:03.7]} 22... Qe8 {[%clk 0:01:23.7]} 23. a4 {[%clk 0:01:01.4]} 23... Bxa4
{[%clk 0:01:18]} 24. Qxb6 {[%clk 0:01:01.5]} 24... Bxd1 {[%clk 0:01:18.3]} 25.
Rxd1 {[%clk 0:01:01.5]} 25... Qb5 {[%clk 0:00:57.9]} 26. Qd4 {[%clk 0:00:59.8]}
26... Rd8 {[%clk 0:00:38.6]} 27. h5 {[%clk 0:00:58.9]} 27... gxh5 {[%clk
0:00:37.2]} 28. Qe4 {[%clk 0:00:58.9]} 28... g6 {[%clk 0:00:36.6]} 29. Qf4
{[%clk 0:00:57.9]} 29... Rd7 {[%clk 0:00:37.1]} 30. Ne4 {[%clk 0:00:57.4]} 30...
Kg7 {[%clk 0:00:28.1]} 31. Nf6 {[%clk 0:00:57.6]} 31... Rxd6 {[%clk 0:00:23.3]}
32. Rxd6 {[%clk 0:00:49.1]} 32... Qb1+ {[%clk 0:00:22.2]} 33. Kh2 {[%clk
0:00:48.1]} 33... Qf5 {[%clk 0:00:22.9]} 34. Qd4 {[%clk 0:00:46.2]} 34... b5
{[%clk 0:00:20.5]} 35. Rd7 {[%clk 0:00:45.3]} 35... Rf8 {[%clk 0:00:16.6]} 36.
Ne4 {[%clk 0:00:32.7]} 36... g5 {[%clk 0:00:15.7]} 37. Nd6 {[%clk 0:00:25.7]}
37... Qg6 {[%clk 0:00:15.4]} 38. Ra7 {[%clk 0:00:23.3]} 38... g4 {[%clk
0:00:14.7]} 39. Rxa6 {[%clk 0:00:22.8]} 39... h4 {[%clk 0:00:15]} 40. Qf4 {[%clk
0:00:21.7]} 40... Rh8 {[%clk 0:00:13.6]} 41. Ra7 {[%clk 0:00:19]} 41... g3+
{[%clk 0:00:13.8]} 42. Kh3 {[%clk 0:00:19.1]} 42... Rf8 {[%clk 0:00:11.3]} 43.
f3 {[%clk 0:00:17]} 43... Kg8 {[%clk 0:00:08.3]} 44. Ne4 {[%clk 0:00:16.9]}
44... f5 {[%clk 0:00:08.1]} 45. Nf6+ {[%clk 0:00:16.1]} 45... Rxf6 {[%clk
0:00:08]} 46. exf6 {[%clk 0:00:16.1]} 46... Qxf6 {[%clk 0:00:08.2]} 47. Qb8+
{[%clk 0:00:15.9]} 47... Qf8 {[%clk 0:00:08.2]} 48. Qc7 {[%clk 0:00:15.5]} 48...
Qf6 {[%clk 0:00:05.1]} 49. Ra8+ {[%clk 0:00:14.4]} 49... Qf8 {[%clk 0:00:04.8]}
50. Rxf8+ {[%clk 0:00:14.9]} 50... Kxf8 {[%clk 0:00:05.7]} 1-0

[Event "Early-Titled-Tuesday-Blitz-May-07-2024"]
[Site "Chess.com"]
[Date "2024.05.07"]
[Round "1"]
[White "JaackCamel"]
[Black "Arhan_Anand"]
[Result "0-1"]
[WhiteElo "2274"]
[BlackElo "2611"]
[TimeControl "180+1"]
[EndTime "8:07:40 PDT"]
[Termination "Arhan_Anand won by resignation"]

1. d4 {[%clk 0:02:57.9]} 1... Nf6 {[%clk 0:02:56.7]} 2. c4 {[%clk 0:02:56.3]}
2... e6 {[%clk 0:02:56.9]} 3. Nc3 {[%clk 0:02:55.9]} 3... Bb4 {[%clk 0:02:56.1]}
4. Qc2 {[%clk 0:02:55.6]} 4... O-O {[%clk 0:02:55.2]} 5. a3 {[%clk 0:02:55.3]}
5... Bxc3+ {[%clk 0:02:54.9]} 6. Qxc3 {[%clk 0:02:55.1]} 6... d5 {[%clk
0:02:55.2]} 7. Nf3 {[%clk 0:02:52.3]} 7... dxc4 {[%clk 0:02:53.6]} 8. Qxc4
{[%clk 0:02:50.2]} 8... b6 {[%clk 0:02:54]} 9. Bg5 {[%clk 0:02:45.3]} 9... Bb7
{[%clk 0:02:53.9]} 10. e3 {[%clk 0:02:42.4]} 10... Nbd7 {[%clk 0:02:52.4]} 11.
Be2 {[%clk 0:02:37.5]} 11... c5 {[%clk 0:02:52]} 12. O-O {[%clk 0:02:32.8]}
12... Rc8 {[%clk 0:02:51.1]} 13. Rfd1 {[%clk 0:02:25.5]} 13... h6 {[%clk
0:02:42.3]} 14. Bh4 {[%clk 0:02:23.3]} 14... Bd5 {[%clk 0:02:41.3]} 15. Qa6
{[%clk 0:02:17.2]} 15... Qc7 {[%clk 0:02:38.4]} 16. Rac1 {[%clk 0:02:04.2]}
16... Qb8 {[%clk 0:02:30.7]} 17. Bg3 {[%clk 0:02:02.8]} 17... Qa8 {[%clk
0:02:30.2]} 18. Bd6 {[%clk 0:01:45.1]} 18... Rfd8 {[%clk 0:02:22.4]} 19. dxc5
{[%clk 0:01:44.9]} 19... Nxc5 {[%clk 0:02:21.2]} 20. Bxc5 {[%clk 0:01:44.3]}
20... bxc5 {[%clk 0:02:22.1]} 21. h3 {[%clk 0:01:18.2]} 21... Ne4 {[%clk
0:02:12.6]} 22. Bc4 {[%clk 0:01:11.5]} 22... Rd6 {[%clk 0:02:09.7]} 23. Bxd5
{[%clk 0:01:03.2]} 23... exd5 {[%clk 0:02:08.8]} 24. Qa4 {[%clk 0:00:51.9]}
24... Re8 {[%clk 0:02:02.2]} 25. Nd2 {[%clk 0:00:47.8]} 25... d4 {[%clk
0:01:53.7]} 26. Nc4 {[%clk 0:00:44.7]} 26... Rg6 {[%clk 0:01:53]} 27. f3 {[%clk
0:00:38.6]} 27... Nf6 {[%clk 0:01:39]} 28. e4 {[%clk 0:00:38.3]} 28... Qb8
{[%clk 0:01:33.3]} 29. Rc2 {[%clk 0:00:26]} 29... Qg3 {[%clk 0:01:28.2]} 30. e5
{[%clk 0:00:25.5]} 30... Rxe5 {[%clk 0:01:02.9]} 31. Nxe5 {[%clk 0:00:23.9]}
31... Qxe5 {[%clk 0:01:03.8]} 32. Qc6 {[%clk 0:00:18.3]} 32... Rg5 {[%clk
0:00:42.3]} 33. Rf1 {[%clk 0:00:16.5]} 33... Nh5 {[%clk 0:00:40]} 34. Rcf2
{[%clk 0:00:15.2]} 34... Nf4 {[%clk 0:00:39.7]} 35. Qa8+ {[%clk 0:00:14.3]}
35... Kh7 {[%clk 0:00:39.2]} 36. Qe4+ {[%clk 0:00:13.1]} 36... Qxe4 {[%clk
0:00:39.1]} 37. fxe4 {[%clk 0:00:13.6]} 37... Nxh3+ {[%clk 0:00:40]} 38. Kh2
{[%clk 0:00:13.4]} 38... Nxf2 {[%clk 0:00:40.9]} 39. Rxf2 {[%clk 0:00:14]} 39...
f6 {[%clk 0:00:41.3]} 40. Re2 {[%clk 0:00:13.7]} 40... Kg8 {[%clk 0:00:39.6]}
41. g3 {[%clk 0:00:14.1]} 41... Kf7 {[%clk 0:00:39.4]} 42. Kg2 {[%clk
0:00:14.5]} 42... Re5 {[%clk 0:00:39]} 43. Kf3 {[%clk 0:00:14.9]} 43... f5
{[%clk 0:00:36.1]} 44. Rc2 {[%clk 0:00:13.1]} 44... fxe4+ {[%clk 0:00:33.5]} 45.
Kf4 {[%clk 0:00:13.6]} 45... Ke6 {[%clk 0:00:33.3]} 46. b4 {[%clk 0:00:12.9]}
46... d3 {[%clk 0:00:30.9]} 47. Rd2 {[%clk 0:00:11.9]} 47... c4 {[%clk
0:00:30.6]} 48. Ke3 {[%clk 0:00:11.4]} 48... c3 {[%clk 0:00:31.1]} 49. Rd1
{[%clk 0:00:11.7]} 49... c2 {[%clk 0:00:31.2]} 50. Rc1 {[%clk 0:00:11.5]} 50...
Rf5 {[%clk 0:00:31]} 51. Kxe4 {[%clk 0:00:11.2]} 51... d2 {[%clk 0:00:31.4]} 52.
Rxc2 {[%clk 0:00:10.9]} 52... d1=Q {[%clk 0:00:31.8]} 53. Rc6+ {[%clk
0:00:11.6]} 53... Kd7 {[%clk 0:00:32.1]} 0-1

[Event "Early-Titled-Tuesday-Blitz-May-07-2024"]
[Site "Chess.com"]
[Date "2024.05.07"]
[Round "1"]
[White "IwkooO"]
[Black "Amiciterno"]
[Result "1-0"]
[WhiteElo "2696"]
[BlackElo "2393"]
[TimeControl "180+1"]
[EndTime "8:07:42 PDT"]
[Termination "IwkooO won on time"]

1. e4 {[%clk 0:02:59.8]} 1... d6 {[%clk 0:02:59.6]} 2. d4 {[%clk 0:02:59.7]}
2... Nf6 {[%clk 0:03:00.1]} 3. Nc3 {[%clk 0:03:00.1]} 3... e5 {[%clk 0:02:59.9]}
4. f3 {[%clk 0:02:59.6]} 4... Nbd7 {[%clk 0:02:55.6]} 5. Be3 {[%clk 0:02:59.4]}
5... c6 {[%clk 0:02:50.4]} 6. Nge2 {[%clk 0:02:58.8]} 6... Be7 {[%clk
0:02:49.4]} 7. Qd2 {[%clk 0:02:59.4]} 7... Qc7 {[%clk 0:02:49.3]} 8. O-O-O
{[%clk 0:02:59.7]} 8... b5 {[%clk 0:02:49.6]} 9. Ng3 {[%clk 0:02:55.7]} 9... g6
{[%clk 0:02:45.4]} 10. Kb1 {[%clk 0:02:53.9]} 10... b4 {[%clk 0:02:41.7]} 11.
Nce2 {[%clk 0:02:53.8]} 11... a5 {[%clk 0:02:42.2]} 12. h4 {[%clk 0:02:49.3]}
12... Ba6 {[%clk 0:02:37.8]} 13. h5 {[%clk 0:02:39.6]} 13... Rg8 {[%clk
0:02:37.9]} 14. hxg6 {[%clk 0:02:35.6]} 14... hxg6 {[%clk 0:02:38.7]} 15. Nc1
{[%clk 0:02:35.6]} 15... Bxf1 {[%clk 0:02:36.8]} 16. Rhxf1 {[%clk 0:02:36.5]}
16... Qb7 {[%clk 0:02:19.1]} 17. f4 {[%clk 0:02:28.3]} 17... Ng4 {[%clk
0:02:12.9]} 18. f5 {[%clk 0:02:24.9]} 18... Nxe3 {[%clk 0:02:08.3]} 19. Qxe3
{[%clk 0:02:25.8]} 19... exd4 {[%clk 0:02:09]} 20. Qxd4 {[%clk 0:02:22.5]} 20...
Ne5 {[%clk 0:02:05.9]} 21. Nd3 {[%clk 0:02:18.7]} 21... c5 {[%clk 0:01:28]} 22.
Nxc5 {[%clk 0:02:11.6]} 22... Qb6 {[%clk 0:01:14.9]} 23. Ne6 {[%clk 0:02:10.3]}
23... Qxd4 {[%clk 0:01:06.2]} 24. Nxd4 {[%clk 0:02:11.2]} 24... Nc4 {[%clk
0:01:00.4]} 25. Rf3 {[%clk 0:02:03.4]} 25... a4 {[%clk 0:00:48]} 26. Nc6 {[%clk
0:02:00.9]} 26... Bf6 {[%clk 0:00:28.3]} 27. fxg6 {[%clk 0:01:51.5]} 27... Rxg6
{[%clk 0:00:29.2]} 28. Nxb4 {[%clk 0:01:18.7]} 28... Bxb2 {[%clk 0:00:16]} 29.
c3 {[%clk 0:01:18.8]} 29... Ba3 {[%clk 0:00:09.2]} 30. Rd4 {[%clk 0:01:12.6]}
30... Bxb4 {[%clk 0:00:08.4]} 31. Rxc4 {[%clk 0:01:12.2]} 31... Bc5 {[%clk
0:00:07.4]} 32. Kc2 {[%clk 0:01:08.4]} 32... Kd7 {[%clk 0:00:06]} 33. Rxf7+
{[%clk 0:01:06.4]} 33... Ke6 {[%clk 0:00:06.4]} 34. Rf3 {[%clk 0:01:06.1]} 34...
Rag8 {[%clk 0:00:06.1]} 35. Ne2 {[%clk 0:01:00.3]} 35... Rxg2 {[%clk 0:00:07]}
36. Kd3 {[%clk 0:01:00.9]} 36... a3 {[%clk 0:00:03.9]} 37. Nf4+ {[%clk 0:01:01]}
37... Ke7 {[%clk 0:00:01.7]} 38. Nxg2 {[%clk 0:01:00.3]} 38... Rxg2 {[%clk
0:00:02.6]} 39. e5 {[%clk 0:00:58.3]} 39... Rxa2 {[%clk 0:00:02.4]} 40. exd6+
{[%clk 0:00:58.9]} 40... Bxd6 {[%clk 0:00:03.3]} 41. Ra4 {[%clk 0:00:57.5]}
41... Ra1 {[%clk 0:00:02.6]} 42. Rf2 {[%clk 0:00:57.6]} 42... Rd1+ {[%clk
0:00:02.4]} 43. Rd2 {[%clk 0:00:54.9]} 43... Rh1 {[%clk 0:00:02.9]} 44. Re2+
{[%clk 0:00:54.5]} 44... Kd7 {[%clk 0:00:03]} 45. Rd2 {[%clk 0:00:52.1]} 45...
Kc6 {[%clk 0:00:02.5]} 46. Ra6+ {[%clk 0:00:51.4]} 46... Kc7 {[%clk 0:00:02.3]}
47. Kc2 {[%clk 0:00:51.7]} 47... Be5 {[%clk 0:00:02.7]} 48. Re2 {[%clk
0:00:51.4]} 48... Bd6 {[%clk 0:00:01.6]} 49. Rd2 {[%clk 0:00:51.7]} 49... Rh6
{[%clk 0:00:01.4]} 50. Kb3 {[%clk 0:00:50]} 50... Rf6 {[%clk 0:00:01.7]} 51. Rd4
{[%clk 0:00:41.9]} 51... Rg6 {[%clk 0:00:01.2]} 52. Rda4 {[%clk 0:00:41.6]} 1-0

[Event "Early-Titled-Tuesday-Blitz-May-07-2024"]
[Site "Chess.com"]
[Date "2024.05.07"]
[Round "1"]
[White "aanshnerurkar"]
[Black "MatthewG-p4p"]
[Result "0-1"]
[WhiteElo "2496"]
[BlackElo "2892"]
[TimeControl "180+1"]
[EndTime "8:07:45 PDT"]
[Termination "MatthewG-p4p won by resignation"]

1. e4 {[%clk 0:02:59.6]} 1... e6 {[%clk 0:02:58.8]} 2. d4 {[%clk 0:02:59.1]}
2... d5 {[%clk 0:02:57.4]} 3. Nd2 {[%clk 0:02:59.1]} 3... a6 {[%clk 0:02:57.4]}
4. Ngf3 {[%clk 0:02:58.4]} 4... Nf6 {[%clk 0:02:57.4]} 5. e5 {[%clk 0:02:51.1]}
5... Nfd7 {[%clk 0:02:56.2]} 6. c3 {[%clk 0:02:50.3]} 6... c5 {[%clk 0:02:56.5]}
7. Bd3 {[%clk 0:02:50.1]} 7... Nc6 {[%clk 0:02:57.2]} 8. O-O {[%clk 0:02:49.7]}
8... g5 {[%clk 0:02:57.2]} 9. b3 {[%clk 0:02:39]} 9... g4 {[%clk 0:02:50.5]} 10.
Ne1 {[%clk 0:02:38.2]} 10... cxd4 {[%clk 0:02:50.8]} 11. cxd4 {[%clk 0:02:37.9]}
11... Nxd4 {[%clk 0:02:51.7]} 12. Qxg4 {[%clk 0:02:31.2]} 12... Nc6 {[%clk
0:02:51.9]} 13. f4 {[%clk 0:02:25.9]} 13... h5 {[%clk 0:02:50.8]} 14. Qf3 {[%clk
0:02:22.3]} 14... Nd4 {[%clk 0:02:34]} 15. Qd1 {[%clk 0:02:15.7]} 15... Qb6
{[%clk 0:02:31.8]} 16. Kh1 {[%clk 0:02:15.3]} 16... h4 {[%clk 0:02:21.2]} 17.
Bb2 {[%clk 0:02:11.6]} 17... h3 {[%clk 0:01:59.8]} 18. g3 {[%clk 0:02:10.2]}
18... Nc6 {[%clk 0:01:59.2]} 19. Nef3 {[%clk 0:02:08.9]} 19... Nc5 {[%clk
0:01:59.3]} 20. Bb1 {[%clk 0:02:03.6]} 20... Bd7 {[%clk 0:01:59]} 21. a3 {[%clk
0:01:50.8]} 21... a5 {[%clk 0:01:34.3]} 22. Nd4 {[%clk 0:01:43.9]} 22... Na4
{[%clk 0:01:22.5]} 23. Nxc6 {[%clk 0:01:21.4]} 23... Nxb2 {[%clk 0:00:53.7]} 24.
Qc2 {[%clk 0:01:21.1]} 24... Bxc6 {[%clk 0:00:49.8]} 25. Qxb2 {[%clk 0:01:21.3]}
25... Bc5 {[%clk 0:00:48.4]} 26. Nf3 {[%clk 0:01:02.6]} 26... Be3 {[%clk
0:00:33.1]} 27. Bd3 {[%clk 0:00:47.3]} 27... Rc8 {[%clk 0:00:24.8]} 28. Qb1
{[%clk 0:00:18.2]} 28... Ke7 {[%clk 0:00:11.2]} 29. f5 {[%clk 0:00:17.1]} 29...
Qc5 {[%clk 0:00:10.7]} 30. b4 {[%clk 0:00:12.3]} 30... axb4 {[%clk 0:00:10.1]}
31. axb4 {[%clk 0:00:12.4]} 31... Qc3 {[%clk 0:00:09.5]} 32. b5 {[%clk
0:00:12.6]} 32... Bd7 {[%clk 0:00:09.6]} 33. fxe6 {[%clk 0:00:10.2]} 33... Bxe6
{[%clk 0:00:10.5]} 34. Be2 {[%clk 0:00:09.7]} 34... Qc2 {[%clk 0:00:07.9]} 35.
Qxc2 {[%clk 0:00:08.2]} 35... Rxc2 {[%clk 0:00:07.8]} 36. Bd3 {[%clk 0:00:08.7]}
36... Rc3 {[%clk 0:00:07.9]} 37. Be2 {[%clk 0:00:06.8]} 37... d4 {[%clk
0:00:07.9]} 38. g4 {[%clk 0:00:04.7]} 38... Bd5 {[%clk 0:00:08.5]} 39. Rad1
{[%clk 0:00:04.8]} 39... Ra8 {[%clk 0:00:07.8]} 40. Rd3 {[%clk 0:00:04.6]} 40...
Ra2 {[%clk 0:00:06.5]} 41. Rxc3 {[%clk 0:00:03.8]} 41... dxc3 {[%clk 0:00:07.4]}
42. Bd3 {[%clk 0:00:04.1]} 42... c2 {[%clk 0:00:08.2]} 43. Bxc2 {[%clk
0:00:04.1]} 43... Rxc2 {[%clk 0:00:09.1]} 44. g5 {[%clk 0:00:04.7]} 44... Bf2
{[%clk 0:00:06.5]} 0-1

[Event "Early-Titled-Tuesday-Blitz-May-07-2024"]
[Site "Chess.com"]
[Date "2024.05.07"]
[Round "1"]
[White "Witik"]
[Black "Levanzovsky"]
[Result "1-0"]
[WhiteElo "2868"]
[BlackElo "2487"]
[TimeControl "180+1"]
[EndTime "8:07:48 PDT"]
[Termination "Witik won by checkmate"]

1. d4 {[%clk 0:02:59.9]} 1... Nf6 {[%clk 0:02:59.3]} 2. Nf3 {[%clk 0:03:00.3]}
2... d5 {[%clk 0:02:58.9]} 3. Bf4 {[%clk 0:03:00.3]} 3... c5 {[%clk 0:02:49.3]}
4. e3 {[%clk 0:03:00.5]} 4... Nc6 {[%clk 0:02:49.1]} 5. Nbd2 {[%clk 0:02:59.9]}
5... cxd4 {[%clk 0:02:46.9]} 6. exd4 {[%clk 0:02:59.8]} 6... Bg4 {[%clk
0:02:47.5]} 7. h3 {[%clk 0:02:56]} 7... Bh5 {[%clk 0:02:47.6]} 8. c3 {[%clk
0:02:56]} 8... e6 {[%clk 0:02:47.6]} 9. Bb5 {[%clk 0:02:45.8]} 9... Bd6 {[%clk
0:02:42.5]} 10. Bxd6 {[%clk 0:02:36.6]} 10... Qxd6 {[%clk 0:02:42]} 11. g4
{[%clk 0:02:30.6]} 11... Bg6 {[%clk 0:02:41.7]} 12. Ne5 {[%clk 0:02:31]} 12...
O-O {[%clk 0:02:41.6]} 13. Bxc6 {[%clk 0:02:29.7]} 13... bxc6 {[%clk 0:02:41.3]}
14. h4 {[%clk 0:02:16.6]} 14... c5 {[%clk 0:02:31.9]} 15. h5 {[%clk 0:02:15.2]}
15... cxd4 {[%clk 0:02:31.9]} 16. cxd4 {[%clk 0:02:14.6]} 16... Be4 {[%clk
0:02:30.6]} 17. f3 {[%clk 0:02:14.5]} 17... Nxg4 {[%clk 0:02:18.2]} 18. Nxg4
{[%clk 0:02:04.7]} 18... Qg3+ {[%clk 0:02:15.6]} 19. Nf2 {[%clk 0:02:03]} 19...
Bf5 {[%clk 0:02:11.7]} 20. Nf1 {[%clk 0:01:47.7]} 20... Qf4 {[%clk 0:02:07.4]}
21. Qd2 {[%clk 0:01:25.7]} 21... Qxf3 {[%clk 0:02:06.8]} 22. Rh4 {[%clk
0:01:20.9]} 22... Rac8 {[%clk 0:01:49.7]} 23. Rc1 {[%clk 0:01:05.3]} 23... h6
{[%clk 0:01:33.4]} 24. Rc5 {[%clk 0:00:48.6]} 24... Rxc5 {[%clk 0:01:22.4]} 25.
dxc5 {[%clk 0:00:48.6]} 25... Rc8 {[%clk 0:01:22.9]} 26. b4 {[%clk 0:00:46.8]}
26... a5 {[%clk 0:01:21.5]} 27. Qe3 {[%clk 0:00:33.5]} 27... Qxe3+ {[%clk
0:00:59.3]} 28. Nxe3 {[%clk 0:00:33.6]} 28... Bb1 {[%clk 0:00:42.2]} 29. a3
{[%clk 0:00:33]} 29... axb4 {[%clk 0:00:41.9]} 30. axb4 {[%clk 0:00:33.7]} 30...
f5 {[%clk 0:00:37.3]} 31. Kd2 {[%clk 0:00:31.2]} 31... Kf7 {[%clk 0:00:34.4]}
32. Nd3 {[%clk 0:00:29.4]} 32... Kf6 {[%clk 0:00:34.4]} 33. Rh1 {[%clk
0:00:27.6]} 33... Bxd3 {[%clk 0:00:25.7]} 34. Kxd3 {[%clk 0:00:28.5]} 34... f4
{[%clk 0:00:25.4]} 35. Ng2 {[%clk 0:00:20.2]} 35... e5 {[%clk 0:00:24.8]} 36.
Rc1 {[%clk 0:00:20.2]} 36... Ra8 {[%clk 0:00:20]} 37. b5 {[%clk 0:00:18.9]}
37... Ra3+ {[%clk 0:00:19.6]} 38. Ke2 {[%clk 0:00:16.9]} 38... f3+ {[%clk
0:00:19.2]} 39. Kf2 {[%clk 0:00:16.1]} 39... fxg2 {[%clk 0:00:19.5]} 40. c6
{[%clk 0:00:16.3]} 40... Ra2+ {[%clk 0:00:18.6]} 41. Kg1 {[%clk 0:00:16.2]}
41... d4 {[%clk 0:00:06.3]} 42. c7 {[%clk 0:00:16.3]} 42... d3 {[%clk 0:00:07]}
43. c8=Q {[%clk 0:00:16.6]} 43... d2 {[%clk 0:00:07.9]} 44. Qf8+ {[%clk
0:00:15.4]} 44... Kg5 {[%clk 0:00:07.4]} 45. Qxg7+ {[%clk 0:00:13.8]} 45... Kxh5
{[%clk 0:00:08.1]} 46. Qxe5+ {[%clk 0:00:10.5]} 46... Kg4 {[%clk 0:00:08]} 47.
Qe4+ {[%clk 0:00:08.2]} 47... Kh5 {[%clk 0:00:06.9]} 48. Rc5# {[%clk 0:00:07.8]}
1-0

[Event "Early-Titled-Tuesday-Blitz-May-07-2024"]
[Site "Chess.com"]
[Date "2024.05.07"]
[Round "1"]
[White "cthake"]
[Black "tusplingher"]
[Result "0-1"]
[WhiteElo "1865"]
[BlackElo "2548"]
[TimeControl "180+1"]
[EndTime "8:07:48 PDT"]
[Termination "tusplingher won on time"]

1. c4 {[%clk 0:02:56.4]} 1... e6 {[%clk 0:02:58.9]} 2. Nc3 {[%clk 0:02:56]} 2...
Nf6 {[%clk 0:02:58.8]} 3. d4 {[%clk 0:02:56.4]} 3... d5 {[%clk 0:02:58.9]} 4.
Bg5 {[%clk 0:02:55.7]} 4... a6 {[%clk 0:02:54.3]} 5. cxd5 {[%clk 0:02:54]} 5...
exd5 {[%clk 0:02:54.4]} 6. e3 {[%clk 0:02:54.1]} 6... c6 {[%clk 0:02:51.9]} 7.
Nf3 {[%clk 0:02:53.2]} 7... Bd6 {[%clk 0:02:51.7]} 8. Bd3 {[%clk 0:02:52.7]}
8... h6 {[%clk 0:02:49.3]} 9. Bh4 {[%clk 0:02:51.6]} 9... O-O {[%clk 0:02:48.3]}
10. O-O {[%clk 0:02:50.9]} 10... Nbd7 {[%clk 0:02:41.9]} 11. Rb1 {[%clk
0:02:46.6]} 11... a5 {[%clk 0:02:41.5]} 12. a3 {[%clk 0:02:42.9]} 12... b5
{[%clk 0:02:40.5]} 13. Qc2 {[%clk 0:02:29.5]} 13... Ba6 {[%clk 0:02:34.8]} 14.
b4 {[%clk 0:02:21.2]} 14... axb4 {[%clk 0:02:24.9]} 15. axb4 {[%clk 0:02:21.1]}
15... Nb6 {[%clk 0:02:24.1]} 16. Ne5 {[%clk 0:02:16.7]} 16... Bb7 {[%clk
0:02:13.7]} 17. f4 {[%clk 0:02:10.4]} 17... Nc4 {[%clk 0:02:11.3]} 18. Nxc4
{[%clk 0:01:55.4]} 18... bxc4 {[%clk 0:02:07.5]} 19. Bf5 {[%clk 0:01:52.6]}
19... Re8 {[%clk 0:02:04.2]} 20. Rf3 {[%clk 0:01:47.7]} 20... Be7 {[%clk
0:01:54.3]} 21. b5 {[%clk 0:01:31.8]} 21... cxb5 {[%clk 0:01:49.9]} 22. Rxb5
{[%clk 0:01:31]} 22... Bc6 {[%clk 0:01:47.7]} 23. Rb1 {[%clk 0:01:29.7]} 23...
Nh5 {[%clk 0:01:34.1]} 24. Bf2 {[%clk 0:01:25.3]} 24... Nf6 {[%clk 0:01:31.2]}
25. g4 {[%clk 0:01:16.5]} 25... Bd7 {[%clk 0:01:28.4]} 26. g5 {[%clk 0:01:10.9]}
26... Ne4 {[%clk 0:01:14.2]} 27. Bxe4 {[%clk 0:01:01.6]} 27... dxe4 {[%clk
0:01:13.2]} 28. Nxe4 {[%clk 0:01:02.3]} 28... Bc6 {[%clk 0:00:58.4]} 29. gxh6
{[%clk 0:00:51]} 29... g6 {[%clk 0:00:57]} 30. h7+ {[%clk 0:00:49.9]} 30... Kxh7
{[%clk 0:00:52.8]} 31. Rh3+ {[%clk 0:00:48.1]} 31... Kg7 {[%clk 0:00:52.1]} 32.
Ng3 {[%clk 0:00:38]} 32... Rh8 {[%clk 0:00:47]} 33. Rxh8 {[%clk 0:00:35.7]}
33... Qxh8 {[%clk 0:00:46.8]} 34. Qxc4 {[%clk 0:00:35]} 34... Rc8 {[%clk
0:00:43.1]} 35. d5 {[%clk 0:00:33.1]} 35... Bd7 {[%clk 0:00:39.8]} 36. Qd4+
{[%clk 0:00:31.3]} 36... Bf6 {[%clk 0:00:40.1]} 37. Qd2 {[%clk 0:00:27.2]} 37...
Bc3 {[%clk 0:00:34]} 38. Qd3 {[%clk 0:00:23.2]} 38... Qh4 {[%clk 0:00:28.8]} 39.
Rc1 {[%clk 0:00:17.5]} 39... Bf6 {[%clk 0:00:27]} 40. Rxc8 {[%clk 0:00:16.7]}
40... Bxc8 {[%clk 0:00:27.9]} 41. Qe4 {[%clk 0:00:14.5]} 41... Qg4 {[%clk
0:00:25.3]} 42. Kg2 {[%clk 0:00:11.7]} 42... Bf5 {[%clk 0:00:23.9]} 43. Qf3
{[%clk 0:00:10.8]} 43... Qh3+ {[%clk 0:00:24.3]} 44. Kg1 {[%clk 0:00:10.7]}
44... Bg4 {[%clk 0:00:23.2]} 45. Qg2 {[%clk 0:00:10.5]} 45... Qh8 {[%clk
0:00:23.1]} 46. e4 {[%clk 0:00:09.6]} 46... Bh3 {[%clk 0:00:20.5]} 47. Qf3
{[%clk 0:00:09.1]} 47... Qb8 {[%clk 0:00:19]} 48. Qe2 {[%clk 0:00:01.4]} 48...
Qb1+ {[%clk 0:00:18.2]} 49. Nf1 {[%clk 0:00:00.7]} 49... Bxf1 {[%clk 0:00:16.1]}
0-1